bitfinex-derivatives/quotes_BNBF0:USTF0_20250417
["timestamp","ask_amount","ask_price","bid_price","bid_amount"]
[1744913988326,0.29838828,593.83,592.4,3.257]
[1744913988626,0.29838828,593.82,592.4,3.257]
[1744913988926,1.28765456,593.91,592.4,3.257]
[1744913989121,0.29839049,593.9,592.4,3.257]
[1744913989327,0.29839049,593.89,592.4,3.257]
[1744913989524,0.29839049,593.88,592.4,3.257]
[1744913989825,0.29839049,593.87,592.4,3.257]
[1744913990324,0.29839049,593.86,592.4,3.257]
[1744913990519,0.29839049,593.85,592.4,3.257]
[1744913990720,0.29839049,593.84,592.4,3.257]
[1744913990926,0.29839049,593.83,592.4,3.257]
[1744913991122,0.29839049,593.82,592.4,3.257]
[1744913991321,0.29839049,593.81,592.4,3.257]
[1744913991520,0.29839049,593.8,592.4,3.257]
[1744913991724,0.29839049,593.79,592.4,3.257]
[1744913991921,0.29839049,593.78,592.4,3.257]
[1744913992128,0.29839049,593.77,592.4,3.257]
[1744913992331,1.28765456,593.5,592.4,3.257]
[1744913992530,0.29839049,593.49,592.4,3.257]
[1744913993730,1.28765456,593.5,592.4,3.257]
[1744913993932,0.29839048,593.49,592.4,3.257]
[1744913994632,0.29839048,593.48,592.4,3.257]
[1744913994831,0.29839048,593.47,592.4,3.257]
[1744913995029,0.29839048,593.46,592.4,3.257]
[1744913995229,0.29839048,593.45,592.4,3.257]
[1744913995428,0.29357303,593.46,592.4,3.257]
[1744913995631,0.2983908,593.45,592.4,3.257]
[1744913995830,0.2983908,593.44,592.4,3.257]
[1744913996035,0.2983908,593.43,592.4,3.257]
[1744913996337,0.2983908,593.42,592.4,3.257]
[1744913996535,0.2983908,593.41,592.4,3.257]
[1744913996835,0.2983908,593.4,592.4,3.257]
[1744913997032,0.29357303,593.46,592.4,3.257]
[1744913997237,0.2983908,593.45,592.4,3.257]
[1744913997432,0.2983908,593.44,592.4,3.257]
[1744913997732,0.2983908,593.43,592.4,3.257]
[1744913997937,0.2983908,593.42,592.4,3.257]
[1744913998137,0.2983908,593.41,592.4,3.257]
[1744913998436,0.2983908,593.4,592.4,3.257]
[1744913998639,0.29357055,593.46,592.4,3.257]
[1744913998942,0.29839061,593.45,592.4,3.257]
[1744913999138,0.29839061,593.44,592.4,3.257]
[1744913999338,1.28765456,593.36,592.4,3.257]
[1744913999632,0.29839061,593.35,592.4,3.257]
[1744914000638,1.58604517,593.35,592.4,3.257]
[1744914001034,0.29839061,593.34,592.4,3.257]
[1744914002833,1.28765456,593.35,592.4,3.257]
[1744914003037,0.29838955,593.34,592.4,3.257]
[1744914005845,1.28765456,593.33,592.4,3.257]
[1744914006140,0.29839083,593.32,592.4,3.257]
[1744914007845,0.29839373,593.31,592.4,3.257]
[1744914008039,0.29839373,593.32,592.4,3.257]
[1744914008239,0.29839373,593.31,592.4,3.257]
[1744914008644,0.29839373,593.3,592.4,3.257]
[1744914008840,0.29839373,593.31,592.4,3.257]
[1744914009145,0.29839373,593.3,592.4,3.257]
[1744914009441,0.29839373,593.31,592.4,3.257]
[1744914009744,0.29839373,593.3,592.4,3.257]
[1744914010041,0.29839373,593.29,592.4,3.257]
[1744914010246,0.29839373,593.28,592.4,3.257]
[1744914010546,0.29839373,593.27,592.4,3.257]
[1744914010747,0.29839373,593.31,592.4,3.257]
[1744914010943,0.29839373,593.3,592.4,3.257]
[1744914011147,0.29839373,593.36,592.4,3.257]
[1744914011347,0.515,593.29,592.4,3.257]
[1744914011547,0.29839373,593.28,592.4,3.257]
[1744914012450,0.515,593.29,592.4,3.257]
[1744914012648,0.29838982,593.28,592.4,3.257]
[1744914015652,0.515,593.29,592.4,3.257]
[1744914015852,0.29838946,593.28,592.4,3.257]
[1744914018854,0.515,593.29,592.4,3.257]
[1744914019051,0.29838486,593.28,592.4,3.257]
[1744914023855,0.29838486,593.42,592.4,3.257]
[1744914024049,0.29838486,593.41,592.4,3.257]
[1744914024254,0.29838486,593.42,592.4,3.257]
[1744914024457,0.29838486,593.58,592.4,3.257]
[1744914024649,0.63532911,593.57,592.4,3.257]
[1744914024956,0.63533478,593.56,592.4,3.257]
[1744914025156,0.63534046,593.55,592.4,3.257]
[1744914025355,0.63534614,593.54,592.4,3.257]
[1744914025556,0.29838486,593.53,592.4,3.257]
[1744914025755,0.29838486,593.52,592.4,3.257]
[1744914025952,1.28765456,593.43,592.4,3.257]
[1744914026156,0.29838486,593.42,592.4,3.257]
[1744914026359,0.29838486,593.41,592.4,3.257]
[1744914026553,0.29838486,593.42,592.4,3.257]
[1744914026759,0.29838486,593.4,592.4,3.257]
[1744914026953,0.29838486,593.39,592.4,3.257]
[1744914027157,0.29838486,593.42,592.4,3.257]
[1744914027357,0.29838486,593.41,592.4,3.257]
[1744914027558,0.29838486,593.42,592.4,3.257]
[1744914027759,0.29838486,593.41,592.4,3.257]
[1744914027953,0.29838486,593.42,592.4,3.257]
[1744914028154,0.29838486,593.41,592.4,3.257]
[1744914028358,1.28765456,593.39,592.4,3.257]
[1744914028558,0.29838486,593.38,592.4,3.257]
[1744914030162,0.29839254,593.37,592.4,3.257]
[1744914030359,0.29839254,593.38,592.4,3.257]
[1744914030559,0.29839254,593.37,592.4,3.257]
[1744914030855,0.29839254,593.36,592.4,3.257]
[1744914031059,0.29839254,593.42,592.4,3.257]
[1744914031257,0.29839254,593.35,592.4,3.257]
[1744914031461,0.29839254,593.34,592.4,3.257]
[1744914031761,0.29839254,593.42,592.4,3.257]
[1744914031960,0.29839254,593.41,592.4,3.257]
[1744914032161,0.29839254,593.42,592.4,3.257]
[1744914032358,0.29839254,593.41,592.4,3.257]
[1744914032658,0.29839254,593.4,592.4,3.257]
[1744914032962,0.29839254,593.42,592.4,3.257]
[1744914033162,0.33697831,593.51,592.4,3.257]
[1744914033163,0.29839254,593.41,592.4,3.257]
[1744914033360,0.29839254,593.4,592.4,3.257]
[1744914033558,0.29358913,593.43,592.4,3.257]
[1744914033559,0.29839254,593.42,592.4,3.257]
[1744914033759,0.29839254,593.41,592.4,3.257]
[1744914033962,0.29839254,593.42,592.4,3.257]
[1744914036366,0.29839254,593.41,592.4,3.257]
[1744914036571,0.29839254,593.4,592.4,3.257]
[1744914036769,0.29839254,593.46,592.4,3.257]
[1744914037065,0.29839254,593.45,592.4,3.257]
[1744914037364,0.29358417,593.45,592.4,3.257]
[1744914037560,0.29839254,593.44,592.4,3.257]
[1744914037961,0.29358417,593.45,592.4,3.257]
[1744914038167,0.29838198,593.44,592.4,3.257]
[1744914039369,0.29838198,593.5,592.4,3.257]
[1744914039568,0.33698967,593.49,592.4,3.257]
[1744914039768,0.63537166,593.49,592.4,3.257]
[1744914039970,0.29838199,593.48,592.4,3.257]
[1744914040371,0.2935817,593.47,592.4,3.257]
[1744914040573,0.29838199,593.46,592.4,3.257]
[1744914042273,0.29838199,593.48,592.4,3.257]
[1744914042479,0.29838199,593.47,592.4,3.257]
[1744914042773,0.29838199,593.46,592.4,3.257]
[1744914042974,0.29838199,593.48,592.4,3.257]
[1744914043170,0.29838199,593.47,592.4,3.257]
[1744914043379,0.29838199,593.46,592.4,3.257]
[1744914044477,0.645,593.45,592.4,3.257]
[1744914044674,0.29837293,593.44,592.4,3.257]
[1744914048079,0.645,593.45,592.4,3.257]
[1744914048279,0.2983735,593.44,592.4,3.257]
[1744914049682,0.645,593.45,592.4,3.257]
[1744914049881,0.29837263,593.44,592.4,3.257]
[1744914051383,0.29835002,593.43,592.4,3.257]
[1744914051684,0.29835002,593.42,592.4,3.257]
[1744914051985,0.29835002,593.41,592.4,3.257]
[1744914052185,0.29835002,593.44,592.4,3.257]
[1744914052383,0.29835002,593.4,592.4,3.257]
[1744914052584,0.29835002,593.39,592.4,3.257]
[1744914052788,0.29835002,593.44,592.4,3.59460972]
[1744914052988,0.645,593.45,592.4,3.59460972]
[1744914052989,0.29835002,593.43,592.4,3.59460972]
[1744914053191,0.29835002,593.44,592.4,3.59460972]
[1744914053390,0.29835002,593.43,592.4,3.59460972]
[1744914053589,0.29835002,593.44,592.4,3.59460972]
[1744914054587,0.29832173,593.43,592.4,3.59460972]
[1744914054790,0.29832173,593.44,592.4,3.59460972]
[1744914054990,0.29832173,593.43,592.4,3.59460972]
[1744914055190,0.29832173,593.44,592.4,3.59460972]
[1744914055390,0.29832173,593.43,592.4,3.59460972]
[1744914055691,0.29832173,593.42,592.4,3.59460972]
[1744914055984,0.29832173,593.41,592.4,3.59460972]
[1744914056191,0.29832173,593.44,592.4,3.59460972]
[1744914056391,0.29832173,593.4,592.4,3.59460972]
[1744914056690,0.29832173,593.39,592.4,3.59460972]
[1744914056890,0.29832173,593.44,592.4,3.59460972]
[1744914057190,0.29832173,593.43,592.4,3.59460972]
[1744914057385,0.29832173,593.44,592.4,3.59460972]
[1744914057790,0.645,593.45,592.4,3.59460972]
[1744914057990,0.29830775,593.44,592.4,3.59460972]
[1744914061997,0.645,593.45,592.4,3.59460972]
[1744914062195,0.29829924,593.44,592.4,3.59460972]
[1744914063497,0.29829924,593.44,592.41,0.33760402]
[1744914063798,0.29829225,593.43,592.41,0.33760402]
[1744914064096,0.29829225,593.42,592.41,0.33760402]
[1744914064293,0.29829225,593.44,592.41,0.33760402]
[1744914066299,0.29829225,593.44,592.41,1.51660402]
[1744914066801,0.29829225,593.44,592.41,2.07960402]
[1744914067001,0.29829225,593.44,592.41,2.38660402]
[1744914067303,0.29829225,593.44,592.41,2.98460402]
[1744914067504,0.29829225,593.44,592.41,3.11060402]
[1744914067802,0.29829225,593.44,592.41,3.76360402]
[1744914071701,0.29829225,593.48,592.41,3.76360402]
[1744914071902,0.29829225,593.43,592.41,3.76360402]
[1744914072099,0.29829225,593.42,592.41,3.76360402]
[1744914072299,0.29829225,593.48,592.41,3.76360402]
[1744914072503,0.29829225,593.47,592.41,3.76360402]
[1744914072703,0.29829225,593.48,592.41,3.76360402]
[1744914072904,0.29829225,593.47,592.41,3.76360402]
[1744914073104,0.29829225,593.48,592.41,3.76360402]
[1744914073305,0.29830445,593.47,592.41,3.76360402]
[1744914073501,0.29830445,593.48,592.41,3.76360402]
[1744914074709,0.33698967,593.49,592.41,3.76360402]
[1744914075008,0.29830415,593.48,592.41,3.76360402]
[1744914077109,0.53,593.47,592.41,3.76360402]
[1744914077411,0.29830415,593.46,592.41,3.76360402]
[1744914085918,0.29830415,593.46,592.41,3.45660402]
[1744914087417,0.53,593.47,592.41,3.45660402]
[1744914087618,0.29833699,593.46,592.41,3.45660402]
[1744914088318,0.29833699,593.46,592.41,3.76360402]
[1744914090617,0.53,593.47,592.41,3.76360402]
[1744914090818,0.29833197,593.46,592.41,3.76360402]
[1744914092219,0.53,593.47,592.41,3.76360402]
[1744914092419,0.2983284,593.45,592.41,3.76360402]
[1744914092618,0.2983284,593.44,592.41,3.76360402]
[1744914092819,0.2983284,593.46,592.41,3.76360402]
[1744914093918,0.29832685,593.45,592.41,3.76360402]
[1744914094117,0.29832685,593.46,592.41,3.76360402]
[1744914100019,0.29833019,593.45,592.41,3.76360402]
[1744914100226,0.53,593.47,592.41,3.76360402]
[1744914100422,0.29833019,593.44,592.41,3.76360402]
[1744914100619,0.29833019,593.43,592.41,3.76360402]
[1744914100819,0.29833019,593.46,592.41,3.76360402]
[1744914101019,0.29833019,593.42,592.41,3.76360402]
[1744914101323,0.29833019,593.41,592.41,3.76360402]
[1744914101523,0.29833019,593.46,592.41,3.76360402]
[1744914103426,0.53,593.47,592.41,3.76360402]
[1744914103628,0.29833911,593.45,592.41,3.76360402]
[1744914103826,0.29833911,593.44,592.41,3.76360402]
[1744914104029,0.29833911,593.46,592.41,3.76360402]
[1744914106731,0.29833539,593.45,592.41,3.76360402]
[1744914106931,0.29833539,593.46,592.41,3.76360402]
[1744914107430,0.29833539,593.48,592.41,3.76360402]
[1744914107634,0.29833539,593.47,592.41,3.76360402]
[1744914107926,0.29833539,593.46,592.41,3.76360402]
[1744914108132,0.29833539,593.48,592.41,3.76360402]
[1744914108333,0.29833539,593.47,592.41,3.76360402]
[1744914108631,0.29833539,593.46,592.41,3.76360402]
[1744914108830,0.29833539,593.45,592.41,3.76360402]
[1744914109027,0.29833539,593.48,592.41,3.76360402]
[1744914109228,0.29833539,593.47,592.41,3.76360402]
[1744914109427,0.33698967,593.49,592.41,3.76360402]
[1744914110236,0.29833585,593.48,592.41,3.76360402]
[1744914110934,0.499,593.47,592.41,3.76360402]
[1744914111131,0.29833585,593.46,592.41,3.76360402]
[1744914113240,0.499,593.47,592.41,3.76360402]
[1744914113441,0.29833571,593.46,592.41,3.76360402]
[1744914119845,0.29833753,593.45,592.41,3.76360402]
[1744914120044,0.29833753,593.46,592.41,3.76360402]
[1744914128149,0.29833753,593.48,592.41,3.76360402]
[1744914128849,0.33698967,593.49,592.41,3.76360402]
[1744914129049,0.29832182,593.48,592.41,3.76360402]
[1744914131653,0.652,593.47,592.41,3.76360402]
[1744914131850,0.29832182,593.46,592.41,3.76360402]
[1744914137055,0.29828204,593.45,592.41,3.76360402]
[1744914137252,0.29828204,593.46,592.41,3.76360402]
[1744914137452,0.29828204,593.45,592.41,3.76360402]
[1744914137757,0.29828204,593.44,592.41,3.76360402]
[1744914138059,0.29828204,593.46,592.41,3.76360402]
[1744914138357,0.29828204,593.45,592.41,3.76360402]
[1744914138553,0.29828204,593.46,592.41,3.76360402]
[1744914138754,0.29828204,593.45,592.41,3.76360402]
[1744914138957,0.29828204,593.46,592.41,3.76360402]
[1744914145158,0.29828882,593.45,592.41,3.76360402]
[1744914145462,0.652,593.47,592.41,3.76360402]
[1744914147966,0.29830079,593.46,592.41,3.76360402]
[1744914149868,0.652,593.47,592.41,3.76360402]
[1744914150070,0.29832871,593.46,592.41,3.76360402]
[1744914151062,0.29832871,593.48,592.41,3.76360402]
[1744914151263,0.29832871,593.47,592.41,3.76360402]
[1744914151466,0.33698967,593.49,592.41,3.76360402]
[1744914151667,0.29832615,593.48,592.41,3.76360402]
[1744914153072,0.504,593.47,592.41,3.76360402]
[1744914153272,0.29832615,593.46,592.41,3.76360402]
[1744914154675,0.504,593.47,592.41,3.76360402]
[1744914154873,0.29834165,593.45,592.41,3.76360402]
[1744914155174,0.29834165,593.44,592.41,3.76360402]
[1744914155367,0.29834165,593.46,592.41,3.76360402]
[1744914155669,0.29834165,593.45,592.41,3.76360402]
[1744914155873,0.29834165,593.46,592.41,3.76360402]
[1744914156168,0.29834165,593.45,592.41,3.76360402]
[1744914156372,0.29834165,593.46,592.41,3.76360402]
[1744914156567,0.29834165,593.45,592.41,3.76360402]
[1744914156770,0.29834165,593.46,592.41,3.76360402]
[1744914156970,0.29834165,593.45,592.41,3.76360402]
[1744914157172,0.29834165,593.46,592.41,3.76360402]
[1744914157972,0.29833992,593.45,592.41,3.76360402]
[1744914158275,0.29833992,593.44,592.41,3.76360402]
[1744914158475,0.29833992,593.46,592.41,3.76360402]
[1744914159477,0.504,593.47,592.41,3.76360402]
[1744914159778,0.29833992,593.46,592.41,3.76360402]
[1744914161280,0.2983404,593.45,592.41,3.76360402]
[1744914161479,0.2983404,593.46,592.41,3.76360402]
[1744914170888,0.504,593.47,592.41,3.76360402]
[1744914171086,0.29836609,593.46,592.41,3.76360402]
[1744914173490,0.29836609,593.47,592.41,3.76360402]
[1744914174089,0.29357055,593.48,592.41,3.76360402]
[1744914174291,0.29834989,593.47,592.41,3.76360402]
[1744914174492,0.29834989,593.48,592.41,3.76360402]
[1744914175390,0.59191797,593.48,592.41,3.76360402]
[1744914175695,0.29356808,593.48,592.41,3.76360402]
[1744914175890,0.29835263,593.47,592.41,3.76360402]
[1744914176093,1.08935263,593.47,592.41,3.76360402]
[1744914176289,0.29835263,593.46,592.41,3.76360402]
[1744914177295,0.791,593.47,592.41,3.76360402]
[1744914177495,0.29835262,593.46,592.41,3.76360402]
[1744914179393,0.791,593.47,592.41,3.76360402]
[1744914179696,0.2983516,593.46,592.41,3.76360402]
[1744914184993,0.29835227,593.45,592.41,3.76360402]
[1744914185199,0.29835227,593.46,592.41,3.76360402]
[1744914185399,0.29835227,593.45,592.41,3.76360402]
[1744914185594,0.29835227,593.46,592.41,3.76360402]
[1744914185800,0.29835227,593.45,592.41,3.76360402]
[1744914185998,0.29835227,593.46,592.41,3.76360402]
[1744914186298,0.29835227,593.45,592.41,3.76360402]
[1744914186494,0.29835227,593.46,592.41,3.76360402]
[1744914186695,0.29835227,593.44,592.41,3.76360402]
[1744914186895,0.29835227,593.43,592.41,3.76360402]
[1744914187100,0.29835227,593.46,592.41,3.76360402]
[1744914187294,0.29835227,593.45,592.41,3.76360402]
[1744914187694,0.29835227,593.44,592.41,3.76360402]
[1744914187894,0.29835227,593.46,592.41,3.76360402]
[1744914188094,0.29835227,593.45,592.41,3.76360402]
[1744914188294,0.29835227,593.44,592.41,3.76360402]
[1744914188497,0.29835227,593.46,592.41,3.76360402]
[1744914188699,0.29835227,593.45,592.41,3.76360402]
[1744914188894,0.29835227,593.46,592.41,3.76360402]
[1744914189098,0.29835227,593.45,592.41,3.76360402]
[1744914189297,0.29835227,593.46,592.41,3.76360402]
[1744914189493,0.29835227,593.45,592.41,3.76360402]
[1744914189800,0.29835227,593.44,592.41,3.76360402]
[1744914190099,0.29835227,593.43,592.41,3.76360402]
[1744914190294,0.29835227,593.46,592.41,3.76360402]
[1744914190500,0.29835227,593.45,592.41,3.76360402]
[1744914190800,0.29835227,593.44,592.41,3.76360402]
[1744914191000,0.29835227,593.46,592.41,3.76360402]
[1744914191197,0.29835227,593.43,592.41,3.76360402]
[1744914191397,0.29835227,593.42,592.41,3.76360402]
[1744914191600,0.29835227,593.46,592.41,3.76360402]
[1744914191800,0.29835227,593.45,592.41,3.76360402]
[1744914191996,0.29835227,593.44,592.41,3.76360402]
[1744914192201,0.29835227,593.46,592.41,3.76360402]
[1744914192700,0.791,593.47,592.41,3.76360402]
[1744914192900,0.2983501,593.45,592.41,3.76360402]
[1744914193102,0.2983501,593.44,592.41,3.76360402]
[1744914193299,0.2983501,593.46,592.41,3.76360402]
[1744914194303,0.791,593.47,592.41,3.76360402]
[1744914194507,0.29835011,593.46,592.41,3.76360402]
[1744914195904,0.791,593.47,592.41,3.76360402]
[1744914196106,0.29832834,593.46,592.41,3.76360402]
[1744914196404,0.29832834,593.45,592.41,3.76360402]
[1744914196605,0.29832834,593.48,592.41,3.76360402]
[1744914196900,0.29832834,593.47,592.41,3.76360402]
[1744914197100,0.29832834,593.48,592.41,3.76360402]
[1744914199104,0.33698967,593.49,592.41,3.76360402]
[1744914199407,0.85431478,593.48,592.41,3.76360402]
[1744914199609,0.29831478,593.47,592.41,3.76360402]
[1744914202209,0.556,593.48,592.41,3.76360402]
[1744914202407,0.29832183,593.47,592.41,3.76360402]
[1744914205511,0.29832968,593.46,592.41,3.76360402]
[1744914205712,0.29832968,593.47,592.41,3.76360402]
[1744914205913,0.29832968,593.46,592.41,3.76360402]
[1744914206105,0.29832968,593.47,592.41,3.76360402]
[1744914207011,0.556,593.48,592.41,3.76360402]
[1744914207211,0.29832935,593.46,592.41,3.76360402]
[1744914207414,0.29832935,593.45,592.41,3.76360402]
[1744914207613,0.29832935,593.47,592.41,3.76360402]
[1744914213418,0.556,593.48,592.41,3.76360402]
[1744914213620,0.29832532,593.47,592.41,3.76360402]
[1744914214919,0.556,593.48,592.41,3.76360402]
[1744914215116,0.29832503,593.46,592.41,3.76360402]
[1744914215320,0.29832503,593.45,592.41,3.76360402]
[1744914215521,0.29832503,593.47,592.41,3.76360402]
[1744914218123,0.556,593.48,592.41,3.76360402]
[1744914218318,0.29831497,593.47,592.41,3.76360402]
[1744914220821,0.29831497,593.46,592.41,3.76360402]
[1744914221025,0.29831497,593.48,592.41,3.76360402]
[1744914221226,0.29831497,593.47,592.41,3.76360402]
[1744914221421,0.29831703,593.46,592.41,3.76360402]
[1744914221627,0.29831703,593.48,592.41,3.76360402]
[1744914222923,0.33698967,593.49,592.41,3.76360402]
[1744914223226,0.29831949,593.48,592.41,3.76360402]
[1744914224530,0.533,593.47,592.41,3.76360402]
[1744914224725,0.29831949,593.46,592.41,3.76360402]
[1744914227731,0.533,593.47,592.41,3.76360402]
[1744914227931,0.2983248,593.46,592.41,3.76360402]
[1744914240631,0.533,593.47,592.41,3.76360402]
[1744914240632,0.29830276,593.45,592.41,3.76360402]
[1744914240833,0.29830276,593.46,592.41,3.76360402]
[1744914241138,0.29830276,593.45,592.41,3.76360402]
[1744914241334,0.29830276,593.46,592.41,3.76360402]
[1744914241537,0.29830276,593.45,592.41,3.76360402]
[1744914241738,0.533,593.47,592.41,3.76360402]
[1744914242040,0.29830336,593.46,592.41,3.76360402]
[1744914244942,0.533,593.47,592.41,3.76360402]
[1744914245242,0.2983015,593.46,592.41,3.76360402]
[1744914248141,0.533,593.47,592.41,3.76360402]
[1744914248339,0.29829743,593.46,592.41,3.76360402]
[1744914251346,0.533,593.47,592.41,3.76360402]
[1744914251543,0.29830088,593.46,592.41,3.76360402]
[1744914253845,0.29830088,593.48,592.41,3.76360402]
[1744914256353,0.696,593.47,592.41,3.76360402]
[1744914256554,0.29830088,593.46,592.41,3.76360402]
[1744914261057,0.696,593.47,592.41,3.76360402]
[1744914261258,0.29831617,593.46,592.41,3.76360402]
[1744914265962,0.29830653,593.45,592.41,3.76360402]
[1744914266162,0.29830653,593.44,592.41,3.76360402]
[1744914266360,0.29830653,593.46,592.41,3.76360402]
[1744914266554,0.29830653,593.45,592.41,3.76360402]
[1744914266758,0.29830653,593.46,592.41,3.76360402]
[1744914269063,0.696,593.47,592.41,3.76360402]
[1744914269264,0.29830312,593.45,592.41,3.76360402]
[1744914269565,0.29830312,593.44,592.41,3.76360402]
[1744914269760,0.29830312,593.46,592.41,3.76360402]
[1744914270058,0.29830312,593.45,592.41,3.76360402]
[1744914270263,0.29830312,593.46,592.41,3.76360402]
[1744914270457,0.696,593.47,592.41,3.76360402]
[1744914270458,0.29830312,593.45,592.41,3.76360402]
[1744914270662,0.29830312,593.46,592.41,3.76360402]
[1744914272161,0.29830312,593.46,592.41,3.11060402]
[1744914272366,0.29830359,593.45,592.41,3.11060402]
[1744914272561,0.29830359,593.46,592.41,3.11060402]
[1744914275968,0.29830359,593.46,592.41,3.80960402]
[1744914278568,0.29830359,593.48,592.41,3.80960402]
[1744914278768,0.29830359,593.47,592.41,3.80960402]
[1744914278969,0.29830359,593.48,592.41,3.80960402]
[1744914280369,0.33698967,593.49,592.41,3.80960402]
[1744914280567,0.29831169,593.48,592.41,3.80960402]
[1744914281066,0.679,593.47,592.41,3.80960402]
[1744914281266,0.29831169,593.46,592.41,3.80960402]
[1744914288479,0.679,593.47,592.41,3.80960402]
[1744914288676,0.29832647,593.46,592.41,3.80960402]
[1744914291575,0.679,593.47,592.41,3.80960402]
[1744914291776,0.29832514,593.46,592.41,3.80960402]
[1744914294880,0.679,593.47,592.41,3.80960402]
[1744914295079,0.2983264,593.46,592.41,3.80960402]
[1744914296285,0.2983264,593.48,592.41,3.80960402]
[1744914296584,0.2983283,593.47,592.41,3.80960402]
[1744914296885,0.2983332,593.46,592.41,3.80960402]
[1744914297084,0.2983332,593.48,592.41,3.80960402]
[1744914297286,0.2983332,593.47,592.41,3.80960402]
[1744914297477,0.2983332,593.46,592.41,3.80960402]
[1744914297679,0.2983332,593.48,592.41,3.80960402]
[1744914297880,0.33698967,593.49,592.41,3.80960402]
[1744914297881,0.2983332,593.47,592.41,3.80960402]
[1744914298081,0.2983332,593.46,592.41,3.80960402]
[1744914298386,0.2983332,593.45,592.41,3.80960402]
[1744914298787,0.2983332,593.44,592.41,3.80960402]
[1744914299087,0.2983332,593.43,592.41,3.80960402]
[1744914299287,0.2983332,593.48,592.41,3.80960402]
[1744914299589,0.33698967,593.49,592.41,3.80960402]
[1744914299784,0.29833195,593.47,592.41,3.80960402]
[1744914299985,0.29833195,593.46,592.41,3.80960402]
[1744914300289,0.29833195,593.45,592.41,3.80960402]
[1744914300991,0.761,593.46,592.41,3.80960402]
[1744914301188,0.29832962,593.45,592.41,3.80960402]
[1744914311799,0.761,593.46,592.41,3.80960402]
[1744914311996,0.2983028,593.44,592.41,3.80960402]
[1744914312201,0.2983028,593.45,592.41,3.80960402]
[1744914312399,0.2983028,593.44,592.41,3.80960402]
[1744914312700,0.2983028,593.45,592.41,3.80960402]
[1744914315002,0.761,593.46,592.41,3.80960402]
[1744914315196,0.2982992,593.45,592.41,3.80960402]
[1744914318404,0.2982992,593.44,592.41,3.80960402]
[1744914318601,0.2982992,593.48,592.41,3.80960402]
[1744914318804,0.2982992,593.47,592.41,3.80960402]
[1744914319106,0.2982992,593.48,592.41,3.80960402]
[1744914319305,0.2982992,593.47,592.41,3.80960402]
[1744914319502,0.2982992,593.48,592.41,3.80960402]
[1744914319807,0.33698967,593.49,592.41,3.80960402]
[1744914320107,0.29829113,593.48,592.41,3.80960402]
[1744914322001,0.8,593.47,592.41,3.80960402]
[1744914322202,0.29829113,593.46,592.41,3.80960402]
[1744914324607,0.8,593.47,592.41,3.80960402]
[1744914324912,0.2982726,593.46,592.41,3.80960402]
[1744914326314,0.29825131,593.45,592.41,3.80960402]
[1744914326510,0.29825131,593.46,592.41,3.80960402]
[1744914326713,0.29825131,593.45,592.41,3.80960402]
[1744914326913,0.29825131,593.44,592.41,3.80960402]
[1744914327110,0.29825131,593.46,592.41,3.80960402]
[1744914327415,0.29825131,593.45,592.41,3.80960402]
[1744914327611,0.29825131,593.46,592.41,3.80960402]
[1744914333722,0.29825131,593.46,592.42,0.30994915]
[1744914333917,0.29825131,593.46,592.43,0.33759262]
[1744914334122,0.29825131,593.46,592.44,0.30994915]
[1744914334323,0.29825131,593.46,592.45,0.33758123]
[1744914336522,0.29825131,593.46,592.46,0.933]
[1744914336723,0.29825131,593.46,592.47,0.33756983]
[1744914337123,0.29825131,593.46,592.48,0.495]
[1744914337324,0.29825131,593.48,592.48,0.83256413]
[1744914337521,0.29825131,593.48,592.49,1.354]
[1744914337721,0.29825617,593.47,592.49,2.12]
[1744914338017,0.29825617,593.48,592.49,2.12]
[1744914338220,0.29825617,593.47,592.49,2.12]
[1744914338422,0.29825617,593.48,592.49,2.12]
[1744914338622,0.29825617,593.47,592.49,2.12]
[1744914338822,0.29825617,593.48,592.49,2.12]
[1744914339123,0.29825617,593.47,592.49,2.12]
[1744914339324,0.29825617,593.48,592.49,2.12]
[1744914340524,0.33698967,593.49,592.49,2.12]
[1744914340725,0.29825708,593.48,592.49,2.12]
[1744914340926,0.83525708,593.48,592.49,2.12]
[1744914341121,0.29825708,593.47,592.49,2.12]
[1744914342528,0.29825708,593.47,592.5,0.33755274]
[1744914349037,0.537,593.48,592.5,0.33755274]
[1744914349230,0.29825249,593.47,592.5,0.33755274]
[1744914350338,0.537,593.48,592.5,0.33755274]
[1744914353743,0.537,593.48,592.51,0.735]
[1744914353941,0.537,593.48,592.52,0.33754134]
[1744914356847,0.29824897,593.47,592.52,0.33754134]
[1744914357344,0.537,593.48,592.52,1.06054134]